[Event "Early-Titled-Tuesday-Blitz-April-16-2024"]
[Site "Chess.com"]
[Date "2024.04.16"]
[Round "8"]
[White "Silvederione"]
[Black "laiciffOneslraCsungaM"]
[Result "1-0"]
[WhiteElo "2512"]
[BlackElo "2337"]
[TimeControl "180+1"]
[EndTime "9:30:04 PDT"]
[Termination "Silvederione won by resignation"]

1. d4 {[%clk 0:02:59.7]} 1... d5 {[%clk 0:02:56.1]} 2. Nc3 {[%clk 0:03:00]} 2...
a6 {[%clk 0:02:48.5]} 3. Bf4 {[%clk 0:02:59.8]} 3... Bf5 {[%clk 0:02:40.9]} 4.
f3 {[%clk 0:02:59.2]} 4... h5 {[%clk 0:02:35.4]} 5. e4 {[%clk 0:02:58.4]} 5...
Be6 {[%clk 0:02:30.3]} 6. Qd2 {[%clk 0:02:54]} 6... c6 {[%clk 0:02:25.5]} 7.
O-O-O {[%clk 0:02:48.2]} 7... Nf6 {[%clk 0:02:25.5]} 8. Kb1 {[%clk 0:02:39.1]}
8... g6 {[%clk 0:02:23.4]} 9. Nge2 {[%clk 0:02:36.9]} 9... Bg7 {[%clk 0:02:22]}
10. Be5 {[%clk 0:02:36.7]} 10... Nbd7 {[%clk 0:02:21.2]} 11. Nf4 {[%clk
0:02:35.9]} 11... Nxe5 {[%clk 0:02:05.5]} 12. dxe5 {[%clk 0:02:36.8]} 12... Nd7
{[%clk 0:02:05.5]} 13. Nxe6 {[%clk 0:02:36.7]} 13... fxe6 {[%clk 0:02:05.3]} 14.
f4 {[%clk 0:02:35.2]} 14... Qa5 {[%clk 0:01:57]} 15. Nxd5 {[%clk 0:02:14]} 15...
Qxd2 {[%clk 0:01:57.9]} 16. Nc7+ {[%clk 0:02:13.7]} 16... Kf7 {[%clk 0:01:51]}
17. Rxd2 {[%clk 0:02:13.5]} 17... Nc5 {[%clk 0:01:45.9]} 18. Nxa8 {[%clk
0:02:08.8]} 18... Rxa8 {[%clk 0:01:37.9]} 19. Bd3 {[%clk 0:02:07.3]} 19... g5
{[%clk 0:01:37.7]} 20. g3 {[%clk 0:02:05.1]} 20... h4 {[%clk 0:01:37.1]} 21. Rf1
{[%clk 0:02:02.6]} 21... Kg6 {[%clk 0:01:36.6]} 22. a3 {[%clk 0:01:56.4]} 22...
Rd8 {[%clk 0:01:34.7]} 23. Kc1 {[%clk 0:01:52.2]} 23... Rf8 {[%clk 0:01:25.5]}
24. Rdf2 {[%clk 0:01:48.6]} 24... Bh6 {[%clk 0:01:18.8]} 25. Kd1 {[%clk
0:01:48.1]} 25... Na4 {[%clk 0:01:11.9]} 26. b3 {[%clk 0:01:26.3]} 26... Nc3+
{[%clk 0:01:00.3]} 27. Kd2 {[%clk 0:01:21.8]} 27... Nb5 {[%clk 0:01:01.2]} 28.
a4 {[%clk 0:01:09.3]} 28... Nc7 {[%clk 0:00:55.9]} 29. Kc3 {[%clk 0:01:04.6]}
29... Ne8 {[%clk 0:00:53.2]} 30. Bc4 {[%clk 0:00:54.8]} 30... Ng7 {[%clk
0:00:52.9]} 31. fxg5 {[%clk 0:00:53.2]} 31... Rxf2 {[%clk 0:00:52.1]} 32. Rxf2
{[%clk 0:00:51.9]} 32... hxg3 {[%clk 0:00:53]} 33. gxh6 {[%clk 0:00:44]} 33...
gxf2 {[%clk 0:00:52.5]} 34. hxg7 {[%clk 0:00:44.3]} 34... Kxg7 {[%clk 0:00:53]}
35. Kd2 {[%clk 0:00:43.8]} 1-0

[Event "Early-Titled-Tuesday-Blitz-April-16-2024"]
[Site "Chess.com"]
[Date "2024.04.16"]
[Round "8"]
[White "yuriydovzik"]
[Black "romulocardoso"]
[Result "0-1"]
[WhiteElo "2132"]
[BlackElo "2313"]
[TimeControl "180+1"]
[EndTime "9:30:06 PDT"]
[Termination "romulocardoso won on time"]

1. e4 {[%clk 0:03:00.9]} 1... c5 {[%clk 0:02:59]} 2. Nf3 {[%clk 0:02:59.4]} 2...
g6 {[%clk 0:02:59.5]} 3. h4 {[%clk 0:02:57.4]} 3... h5 {[%clk 0:02:58.1]} 4. Nc3
{[%clk 0:02:48]} 4... Nc6 {[%clk 0:02:57.5]} 5. Bc4 {[%clk 0:02:44]} 5... Bg7
{[%clk 0:02:57.7]} 6. d3 {[%clk 0:02:40.2]} 6... a6 {[%clk 0:02:55.9]} 7. a4
{[%clk 0:02:37.8]} 7... d6 {[%clk 0:02:52.4]} 8. Ng5 {[%clk 0:02:36.1]} 8... Ne5
{[%clk 0:02:51.5]} 9. Ba2 {[%clk 0:02:32.9]} 9... Nh6 {[%clk 0:02:42.8]} 10. f3
{[%clk 0:02:28.8]} 10... Bd7 {[%clk 0:02:12.4]} 11. Be3 {[%clk 0:02:22.4]} 11...
b5 {[%clk 0:02:11.7]} 12. Bd5 {[%clk 0:02:07.8]} 12... Rb8 {[%clk 0:02:09.1]}
13. axb5 {[%clk 0:02:06.2]} 13... axb5 {[%clk 0:02:10]} 14. Qd2 {[%clk
0:01:53.8]} 14... b4 {[%clk 0:02:08.2]} 15. Nd1 {[%clk 0:01:51.6]} 15... Bc6
{[%clk 0:02:05.2]} 16. Bxc6+ {[%clk 0:01:16.7]} 16... Nxc6 {[%clk 0:02:06.1]}
17. O-O {[%clk 0:01:13.1]} 17... Nd4 {[%clk 0:01:56.3]} 18. Nf2 {[%clk
0:00:47.4]} 18... b3 {[%clk 0:01:51.3]} 19. Bxd4 {[%clk 0:00:38.5]} 19... Bxd4
{[%clk 0:01:50.7]} 20. c3 {[%clk 0:00:37.3]} 20... Bg7 {[%clk 0:01:46.9]} 21.
Nfh3 {[%clk 0:00:30.4]} 21... O-O {[%clk 0:01:44.7]} 22. Ra3 {[%clk 0:00:21.7]}
22... Qb6 {[%clk 0:01:39.6]} 23. Rfa1 {[%clk 0:00:17.8]} 23... c4+ {[%clk
0:01:40]} 24. d4 {[%clk 0:00:17]} 24... e5 {[%clk 0:01:40.6]} 25. Ra6 {[%clk
0:00:11.8]} 25... Qc7 {[%clk 0:01:34.3]} 26. d5 {[%clk 0:00:11.2]} 26... Rfd8
{[%clk 0:01:26.1]} 27. Nf2 {[%clk 0:00:06.2]} 27... Rb7 {[%clk 0:01:24.7]} 28.
Nd1 {[%clk 0:00:05.5]} 28... Bf8 {[%clk 0:01:19.7]} 0-1

[Event "Early-Titled-Tuesday-Blitz-April-16-2024"]
[Site "Chess.com"]
[Date "2024.04.16"]
[Round "8"]
[White "Attacker_2006"]
[Black "GatoRojo150"]
[Result "1-0"]
[WhiteElo "2463"]
[BlackElo "2598"]
[TimeControl "180+1"]
[EndTime "9:30:12 PDT"]
[Termination "Attacker_2006 won by resignation"]

1. e4 {[%clk 0:03:00.9]} 1... e5 {[%clk 0:02:57.6]} 2. Nc3 {[%clk 0:03:00.9]}
2... Nf6 {[%clk 0:02:54.7]} 3. Bc4 {[%clk 0:02:56.8]} 3... Nxe4 {[%clk
0:02:47.1]} 4. Qh5 {[%clk 0:02:56.4]} 4... Nd6 {[%clk 0:02:45.4]} 5. Qxe5+
{[%clk 0:02:53.9]} 5... Qe7 {[%clk 0:02:43.1]} 6. Qxe7+ {[%clk 0:02:53.4]} 6...
Bxe7 {[%clk 0:02:44]} 7. Bb3 {[%clk 0:02:54.1]} 7... Nf5 {[%clk 0:02:41.5]} 8.
Nf3 {[%clk 0:02:52.2]} 8... c6 {[%clk 0:02:39.7]} 9. d4 {[%clk 0:02:50]} 9... d5
{[%clk 0:02:35.4]} 10. O-O {[%clk 0:02:50.6]} 10... O-O {[%clk 0:02:33.5]} 11.
Bf4 {[%clk 0:02:42.9]} 11... Nd7 {[%clk 0:02:16.9]} 12. Rfe1 {[%clk 0:02:38.6]}
12... Bd6 {[%clk 0:02:02]} 13. Ne2 {[%clk 0:02:36.5]} 13... a5 {[%clk
0:01:56.2]} 14. c3 {[%clk 0:02:30.4]} 14... Nf6 {[%clk 0:01:47.3]} 15. Bc2
{[%clk 0:02:26.5]} 15... Bxf4 {[%clk 0:01:36.7]} 16. Nxf4 {[%clk 0:02:27.4]}
16... Nd6 {[%clk 0:01:37.3]} 17. Ne5 {[%clk 0:02:25.7]} 17... a4 {[%clk
0:01:27.9]} 18. a3 {[%clk 0:02:22.5]} 18... Nd7 {[%clk 0:01:26.9]} 19. Nfd3
{[%clk 0:02:19.6]} 19... f6 {[%clk 0:01:23.2]} 20. Nxd7 {[%clk 0:02:19.7]} 20...
Bxd7 {[%clk 0:01:24.1]} 21. Nc5 {[%clk 0:02:20.4]} 21... Bf5 {[%clk 0:00:35.8]}
22. Bxa4 {[%clk 0:02:07.2]} 22... b6 {[%clk 0:00:28.4]} 23. Bxc6 {[%clk
0:02:07]} 23... bxc5 {[%clk 0:00:28.7]} 24. Bxd5+ {[%clk 0:02:07.7]} 24... Kh8
{[%clk 0:00:27.9]} 25. Bxa8 {[%clk 0:02:08.1]} 25... Rxa8 {[%clk 0:00:26.9]} 26.
dxc5 {[%clk 0:02:08.7]} 26... Nc4 {[%clk 0:00:27.3]} 27. b3 {[%clk 0:02:00.5]}
27... Nd2 {[%clk 0:00:25.2]} 28. b4 {[%clk 0:01:55.1]} 28... Nc4 {[%clk
0:00:19.2]} 29. a4 {[%clk 0:01:53.4]} 29... Bd7 {[%clk 0:00:17.1]} 30. b5 {[%clk
0:01:52.4]} 30... Nb2 {[%clk 0:00:15]} 31. c6 {[%clk 0:01:52.9]} 31... Be8
{[%clk 0:00:12.6]} 32. h3 {[%clk 0:01:40]} 32... h5 {[%clk 0:00:11.1]} 33. c7
{[%clk 0:01:36.2]} 33... Kh7 {[%clk 0:00:07.8]} 34. Rxe8 {[%clk 0:01:33.7]}
34... Rxe8 {[%clk 0:00:07.3]} 35. b6 {[%clk 0:01:34.5]} 35... Nxa4 {[%clk
0:00:06.1]} 36. Rxa4 {[%clk 0:01:33.6]} 36... Re1+ {[%clk 0:00:06.6]} 37. Kh2
{[%clk 0:01:33.5]} 1-0

[Event "Early-Titled-Tuesday-Blitz-April-16-2024"]
[Site "Chess.com"]
[Date "2024.04.16"]
[Round "8"]
[White "NewYearGirl"]
[Black "lefonghua"]
[Result "1/2-1/2"]
[WhiteElo "2385"]
[BlackElo "2589"]
[TimeControl "180+1"]
[EndTime "9:30:15 PDT"]
[Termination "Game drawn by repetition"]

1. e4 {[%clk 0:03:00.9]} 1... c5 {[%clk 0:02:59.9]} 2. Nf3 {[%clk 0:03:01.1]}
2... g6 {[%clk 0:02:59.7]} 3. c4 {[%clk 0:03:00.4]} 3... Bg7 {[%clk 0:02:59.4]}
4. d4 {[%clk 0:03:00.9]} 4... cxd4 {[%clk 0:03:00.3]} 5. Nxd4 {[%clk 0:03:01.8]}
5... Nc6 {[%clk 0:03:00.9]} 6. Be3 {[%clk 0:03:01.4]} 6... Nf6 {[%clk 0:03:01]}
7. Nc3 {[%clk 0:03:01.5]} 7... d6 {[%clk 0:02:59]} 8. Be2 {[%clk 0:03:01.5]}
8... O-O {[%clk 0:02:59]} 9. O-O {[%clk 0:03:01.5]} 9... Bd7 {[%clk 0:02:59.3]}
10. Rc1 {[%clk 0:02:59.8]} 10... Nxd4 {[%clk 0:02:57.7]} 11. Bxd4 {[%clk
0:02:59.6]} 11... Bc6 {[%clk 0:02:58.3]} 12. f3 {[%clk 0:02:56.1]} 12... a5
{[%clk 0:02:58]} 13. b3 {[%clk 0:02:56.1]} 13... Nd7 {[%clk 0:02:57.8]} 14. Bxg7
{[%clk 0:02:54.4]} 14... Kxg7 {[%clk 0:02:58.7]} 15. Qd4+ {[%clk 0:02:51.5]}
15... Kg8 {[%clk 0:02:58.3]} 16. Nd5 {[%clk 0:02:49.6]} 16... Bxd5 {[%clk
0:02:56.2]} 17. cxd5 {[%clk 0:02:43.7]} 17... Nc5 {[%clk 0:02:49.1]} 18. e5
{[%clk 0:02:37.8]} 18... Qb6 {[%clk 0:02:44.9]} 19. f4 {[%clk 0:02:32.6]} 19...
Nd7 {[%clk 0:02:29.9]} 20. Qxb6 {[%clk 0:02:26.1]} 20... Nxb6 {[%clk 0:02:30.8]}
21. Rc7 {[%clk 0:02:18.6]} 21... Nxd5 {[%clk 0:02:24.5]} 22. Rxb7 {[%clk
0:02:17.5]} 22... dxe5 {[%clk 0:02:19.2]} 23. fxe5 {[%clk 0:02:03]} 23... e6
{[%clk 0:02:06.7]} 24. Bf3 {[%clk 0:01:34]} 24... a4 {[%clk 0:01:39.1]} 25. Bxd5
{[%clk 0:01:27]} 25... exd5 {[%clk 0:01:38.8]} 26. b4 {[%clk 0:01:27.3]} 26...
Rae8 {[%clk 0:01:24.4]} 27. Re1 {[%clk 0:01:23.7]} 27... Re6 {[%clk 0:01:15.4]}
28. Rd7 {[%clk 0:01:22.2]} 28... a3 {[%clk 0:01:13]} 29. Rxd5 {[%clk 0:01:21.5]}
29... Rb8 {[%clk 0:01:13]} 30. b5 {[%clk 0:01:21.3]} 30... Rc8 {[%clk
0:01:08.4]} 31. Rd3 {[%clk 0:00:50.5]} 31... Rc5 {[%clk 0:00:58.4]} 32. Rxa3
{[%clk 0:00:46.8]} 32... Rxb5 {[%clk 0:00:57.4]} 33. Rae3 {[%clk 0:00:47]} 33...
Ra5 {[%clk 0:00:52.5]} 34. a3 {[%clk 0:00:47]} 34... Rea6 {[%clk 0:00:47.1]} 35.
Ra1 {[%clk 0:00:43.6]} 35... Re6 {[%clk 0:00:47.2]} 36. Rae1 {[%clk 0:00:40.5]}
36... Rea6 {[%clk 0:00:46.8]} 37. Ra1 {[%clk 0:00:39.4]} 37... Re6 {[%clk
0:00:46.8]} 38. Rae1 {[%clk 0:00:39.5]} 1/2-1/2

[Event "Early-Titled-Tuesday-Blitz-April-16-2024"]
[Site "Chess.com"]
[Date "2024.04.16"]
[Round "8"]
[White "GAO"]
[Black "tarno17"]
[Result "1-0"]
[WhiteElo "2327"]
[BlackElo "2130"]
[TimeControl "180+1"]
[EndTime "9:30:20 PDT"]
[Termination "GAO won on time"]

1. a3 {[%clk 0:03:00]} 1... e5 {[%clk 0:02:59.3]} 2. c4 {[%clk 0:03:00]} 2... c6
{[%clk 0:02:57.1]} 3. d4 {[%clk 0:02:59.3]} 3... e4 {[%clk 0:02:51.1]} 4. Nc3
{[%clk 0:02:58.1]} 4... d5 {[%clk 0:02:50.6]} 5. Qb3 {[%clk 0:02:52.3]} 5... Nf6
{[%clk 0:02:48.4]} 6. Bg5 {[%clk 0:02:51.9]} 6... dxc4 {[%clk 0:02:37.1]} 7.
Qxc4 {[%clk 0:02:50.8]} 7... Be6 {[%clk 0:02:29.5]} 8. Qa4 {[%clk 0:02:46.8]}
8... b5 {[%clk 0:01:53.7]} 9. Qd1 {[%clk 0:02:46.5]} 9... Bd5 {[%clk 0:01:35.8]}
10. e3 {[%clk 0:02:39.1]} 10... Be7 {[%clk 0:01:32.6]} 11. Nh3 {[%clk
0:02:35.4]} 11... O-O {[%clk 0:01:28.6]} 12. Nf4 {[%clk 0:02:34.6]} 12... h6
{[%clk 0:01:26.1]} 13. Bxf6 {[%clk 0:02:32.3]} 13... Bxf6 {[%clk 0:01:27]} 14.
Nfxd5 {[%clk 0:02:27.7]} 14... cxd5 {[%clk 0:01:26.7]} 15. Bxb5 {[%clk
0:02:28.6]} 15... a6 {[%clk 0:01:06.3]} 16. Be2 {[%clk 0:02:28.1]} 16... Nc6
{[%clk 0:01:05.4]} 17. O-O {[%clk 0:02:28.6]} 17... Ne7 {[%clk 0:01:05.4]} 18.
b4 {[%clk 0:02:28.5]} 18... Qd6 {[%clk 0:00:44.8]} 19. Qb3 {[%clk 0:02:27.1]}
19... Rfd8 {[%clk 0:00:41.8]} 20. Na4 {[%clk 0:02:25.5]} 20... Ng6 {[%clk
0:00:32]} 21. Nc5 {[%clk 0:02:21.9]} 21... Be7 {[%clk 0:00:22.3]} 22. Nb7 {[%clk
0:02:21]} 22... Qf6 {[%clk 0:00:22]} 23. Nxd8 {[%clk 0:02:20.6]} 23... Rxd8
{[%clk 0:00:21.4]} 24. a4 {[%clk 0:02:20.8]} 24... Qh4 {[%clk 0:00:16.9]} 25.
Rfc1 {[%clk 0:02:19.9]} 25... Bd6 {[%clk 0:00:16.7]} 26. g3 {[%clk 0:02:13.2]}
26... Qh3 {[%clk 0:00:17.2]} 27. Bf1 {[%clk 0:02:13.4]} 27... Qh5 {[%clk
0:00:17.8]} 28. b5 {[%clk 0:02:12.4]} 28... Qg4 {[%clk 0:00:10.6]} 29. bxa6
{[%clk 0:02:10.2]} 29... Nh4 {[%clk 0:00:10.8]} 30. Bg2 {[%clk 0:02:08.6]} 30...
Nf3+ {[%clk 0:00:04.9]} 31. Bxf3 {[%clk 0:01:53.5]} 31... exf3 {[%clk
0:00:05.8]} 32. Qb5 {[%clk 0:01:53.9]} 32... Qh3 {[%clk 0:00:04]} 33. Qf1 {[%clk
0:01:53.8]} 33... Qh5 {[%clk 0:00:03.7]} 34. a7 {[%clk 0:01:52.6]} 34... Ra8
{[%clk 0:00:03.9]} 35. Rc6 {[%clk 0:01:47.3]} 35... Be7 {[%clk 0:00:01.7]} 36.
Rc7 {[%clk 0:01:43.9]} 36... Bd6 {[%clk 0:00:01.1]} 37. Rb7 {[%clk 0:01:39.3]}
37... Qg4 {[%clk 0:00:01.3]} 38. Rab1 {[%clk 0:01:36]} 38... Kh7 {[%clk
0:00:01.6]} 39. Rxf7 {[%clk 0:01:33.8]} 39... Kg6 {[%clk 0:00:01.3]} 40. Rbb7
{[%clk 0:01:32.8]} 1-0

[Event "Early-Titled-Tuesday-Blitz-April-16-2024"]
[Site "Chess.com"]
[Date "2024.04.16"]
[Round "8"]
[White "Jojo_898"]
[Black "KorolDimitriy75"]
[Result "1-0"]
[WhiteElo "2455"]
[BlackElo "2313"]
[TimeControl "180+1"]
[EndTime "9:30:23 PDT"]
[Termination "Jojo_898 won by checkmate"]

1. e4 {[%clk 0:03:00.9]} 1... c5 {[%clk 0:02:59.9]} 2. Nf3 {[%clk 0:03:01]} 2...
d6 {[%clk 0:03:00.3]} 3. c3 {[%clk 0:03:01.1]} 3... Nf6 {[%clk 0:03:00.7]} 4.
Bd3 {[%clk 0:03:01.2]} 4... g6 {[%clk 0:02:51.3]} 5. O-O {[%clk 0:02:59.8]} 5...
Bg7 {[%clk 0:02:50.5]} 6. h3 {[%clk 0:03:00.4]} 6... O-O {[%clk 0:02:49.8]} 7.
Bc2 {[%clk 0:03:00.9]} 7... e5 {[%clk 0:02:49.8]} 8. d4 {[%clk 0:03:01.1]} 8...
exd4 {[%clk 0:02:50.7]} 9. cxd4 {[%clk 0:03:02]} 9... cxd4 {[%clk 0:02:51.4]}
10. Nxd4 {[%clk 0:03:02.3]} 10... Re8 {[%clk 0:02:40.4]} 11. Nc3 {[%clk
0:03:01.6]} 11... a6 {[%clk 0:02:07.5]} 12. Bg5 {[%clk 0:02:58.1]} 12... h6
{[%clk 0:01:56.6]} 13. Bh4 {[%clk 0:02:57.2]} 13... Nc6 {[%clk 0:01:47]} 14.
Nxc6 {[%clk 0:02:56.2]} 14... bxc6 {[%clk 0:01:47.9]} 15. Bg3 {[%clk 0:02:54.9]}
15... d5 {[%clk 0:01:41.1]} 16. exd5 {[%clk 0:02:53.2]} 16... Nxd5 {[%clk
0:01:42]} 17. Nxd5 {[%clk 0:02:52.9]} 17... cxd5 {[%clk 0:01:42.9]} 18. Rb1
{[%clk 0:02:47.8]} 18... Qa5 {[%clk 0:01:17.3]} 19. Bb3 {[%clk 0:02:45.7]} 19...
Bf5 {[%clk 0:01:07.6]} 20. Bc2 {[%clk 0:02:43.8]} 20... Bxc2 {[%clk 0:01:03]}
21. Qxc2 {[%clk 0:02:44.7]} 21... Qxa2 {[%clk 0:01:02.3]} 22. Rfd1 {[%clk
0:02:42.2]} 22... Red8 {[%clk 0:00:48.4]} 23. Re1 {[%clk 0:02:36.4]} 23... Rac8
{[%clk 0:00:42.5]} 24. Qd3 {[%clk 0:02:33.1]} 24... Qc4 {[%clk 0:00:42.3]} 25.
Qf3 {[%clk 0:02:31.6]} 25... Rd7 {[%clk 0:00:39.2]} 26. Be5 {[%clk 0:02:29.9]}
26... d4 {[%clk 0:00:32.9]} 27. Bf4 {[%clk 0:02:25.3]} 27... Qd5 {[%clk
0:00:29.5]} 28. Qd3 {[%clk 0:02:23.4]} 28... Qb5 {[%clk 0:00:24.3]} 29. Qd2
{[%clk 0:02:14.9]} 29... Kh7 {[%clk 0:00:22.3]} 30. Re4 {[%clk 0:02:06.7]} 30...
d3 {[%clk 0:00:21.7]} 31. b4 {[%clk 0:02:06.8]} 31... Rc2 {[%clk 0:00:20.3]} 32.
Qe3 {[%clk 0:01:58.1]} 32... d2 {[%clk 0:00:19]} 33. Rd1 {[%clk 0:01:58.7]}
33... Rd3 {[%clk 0:00:10.1]} 34. Qa7 {[%clk 0:01:41.9]} 34... Qd5 {[%clk
0:00:08.7]} 35. Re7 {[%clk 0:01:39.3]} 35... Rc1 {[%clk 0:00:09.1]} 36. Rxc1
{[%clk 0:01:34.9]} 36... dxc1=Q+ {[%clk 0:00:10]} 37. Bxc1 {[%clk 0:01:35.3]}
37... Rd1+ {[%clk 0:00:09.8]} 38. Kh2 {[%clk 0:01:36]} 38... Rxc1 {[%clk
0:00:09.1]} 39. Rxf7 {[%clk 0:01:36.6]} 39... Qd6+ {[%clk 0:00:06.8]} 40. g3
{[%clk 0:01:36]} 40... Qd5 {[%clk 0:00:04]} 41. Rxg7+ {[%clk 0:01:35.3]} 41...
Kh8 {[%clk 0:00:04.3]} 42. Rh7+ {[%clk 0:01:35]} 42... Kg8 {[%clk 0:00:04.6]}
43. Qg7# {[%clk 0:01:35.2]} 1-0

[Event "Early-Titled-Tuesday-Blitz-April-16-2024"]
[Site "Chess.com"]
[Date "2024.04.16"]
[Round "8"]
[White "bylavochka"]
[Black "Orphanator2009"]
[Result "0-1"]
[WhiteElo "2351"]
[BlackElo "2523"]
[TimeControl "180+1"]
[EndTime "9:30:24 PDT"]
[Termination "Orphanator2009 won by checkmate"]

1. e4 {[%clk 0:03:00.9]} 1... c5 {[%clk 0:02:59.5]} 2. Nf3 {[%clk 0:03:00.5]}
2... d6 {[%clk 0:02:59.7]} 3. d4 {[%clk 0:03:00.4]} 3... cxd4 {[%clk 0:03:00.6]}
4. Nxd4 {[%clk 0:03:01.2]} 4... Nf6 {[%clk 0:03:01.2]} 5. Nc3 {[%clk 0:03:01.2]}
5... Nc6 {[%clk 0:03:01.8]} 6. Be3 {[%clk 0:03:00.8]} 6... Ng4 {[%clk
0:03:01.8]} 7. Nxc6 {[%clk 0:02:35.3]} 7... bxc6 {[%clk 0:03:00]} 8. Bc1 {[%clk
0:02:22.1]} 8... g6 {[%clk 0:02:56.8]} 9. Be2 {[%clk 0:02:17.7]} 9... h5 {[%clk
0:02:50.3]} 10. h3 {[%clk 0:01:59.6]} 10... Nf6 {[%clk 0:02:48.2]} 11. Be3
{[%clk 0:01:37.8]} 11... Bg7 {[%clk 0:02:47.5]} 12. Qd2 {[%clk 0:01:37.7]} 12...
Qa5 {[%clk 0:02:38.9]} 13. O-O {[%clk 0:01:28.1]} 13... O-O {[%clk 0:02:37.9]}
14. Bh6 {[%clk 0:01:10]} 14... Rb8 {[%clk 0:02:30.6]} 15. Bxg7 {[%clk
0:00:51.9]} 15... Kxg7 {[%clk 0:02:31.5]} 16. Rab1 {[%clk 0:00:51.9]} 16... Rd8
{[%clk 0:02:20.7]} 17. Rfd1 {[%clk 0:00:41.7]} 17... Be6 {[%clk 0:02:11.7]} 18.
a3 {[%clk 0:00:36.5]} 18... Rd7 {[%clk 0:02:06.9]} 19. Qe3 {[%clk 0:00:24.3]}
19... Rdb7 {[%clk 0:02:05]} 20. Qc1 {[%clk 0:00:11.4]} 20... Qe5 {[%clk
0:01:52.9]} 21. f4 {[%clk 0:00:09.2]} 21... Qc5+ {[%clk 0:01:53.1]} 22. Kh2
{[%clk 0:00:08.2]} 22... Qf2 {[%clk 0:01:50.8]} 23. Rf1 {[%clk 0:00:04.9]} 23...
Qd4 {[%clk 0:01:46.9]} 24. f5 {[%clk 0:00:05.1]} 24... Qe5+ {[%clk 0:01:41.4]}
25. Kh1 {[%clk 0:00:05.1]} 25... Bd7 {[%clk 0:01:41.1]} 26. fxg6 {[%clk
0:00:03.4]} 26... fxg6 {[%clk 0:01:42]} 27. Bd3 {[%clk 0:00:01.8]} 27... Rh8
{[%clk 0:01:39]} 28. Be2 {[%clk 0:00:01.4]} 28... Be6 {[%clk 0:01:36.1]} 29. Bd3
{[%clk 0:00:01.6]} 29... Rbb8 {[%clk 0:01:36.3]} 30. Qd2 {[%clk 0:00:01.8]}
30... Rbf8 {[%clk 0:01:35.5]} 31. Rf2 {[%clk 0:00:01.9]} 31... Ng4 {[%clk
0:01:32.5]} 32. hxg4 {[%clk 0:00:01.3]} 32... hxg4+ {[%clk 0:01:30.9]} 33. Kg1
{[%clk 0:00:02]} 33... Qd4 {[%clk 0:01:25.5]} 34. g3 {[%clk 0:00:01.3]} 34...
Rh3 {[%clk 0:01:20.9]} 35. Kg2 {[%clk 0:00:01.2]} 35... Rxf2+ {[%clk 0:01:20.8]}
36. Qxf2 {[%clk 0:00:01.8]} 36... Rh2+ {[%clk 0:01:21.5]} 37. Kxh2 {[%clk
0:00:02.1]} 37... Qxf2+ {[%clk 0:01:22.4]} 38. Kh1 {[%clk 0:00:02.7]} 38... Qxg3
{[%clk 0:01:22.2]} 39. Ne2 {[%clk 0:00:03]} 39... Qh3+ {[%clk 0:01:22.1]} 40.
Kg1 {[%clk 0:00:03.9]} 40... g3 {[%clk 0:01:22.8]} 41. Nf4 {[%clk 0:00:03.1]}
41... Qh2+ {[%clk 0:01:23.2]} 42. Kf1 {[%clk 0:00:03.7]} 42... Qf2# {[%clk
0:01:24.1]} 0-1

[Event "Early-Titled-Tuesday-Blitz-April-16-2024"]
[Site "Chess.com"]
[Date "2024.04.16"]
[Round "8"]
[White "2Coaches1Profile"]
[Black "GelmanAlexander"]
[Result "1-0"]
[WhiteElo "2562"]
[BlackElo "2659"]
[TimeControl "180+1"]
[EndTime "9:30:25 PDT"]
[Termination "2Coaches1Profile won by resignation"]

1. e4 {[%clk 0:02:57.1]} 1... c5 {[%clk 0:02:59.6]} 2. c3 {[%clk 0:02:56.5]}
2... e6 {[%clk 0:02:59.3]} 3. d4 {[%clk 0:02:55.3]} 3... d5 {[%clk 0:02:59.7]}
4. exd5 {[%clk 0:02:54.6]} 4... exd5 {[%clk 0:03:00.3]} 5. Nf3 {[%clk
0:02:55.2]} 5... Nc6 {[%clk 0:03:00.8]} 6. Bb5 {[%clk 0:02:53.3]} 6... Nf6
{[%clk 0:03:01.4]} 7. O-O {[%clk 0:02:51.3]} 7... Bd6 {[%clk 0:03:02]} 8. Re1+
{[%clk 0:02:45.3]} 8... Be6 {[%clk 0:03:02]} 9. Be3 {[%clk 0:02:14.6]} 9... cxd4
{[%clk 0:02:59.9]} 10. Nxd4 {[%clk 0:02:07.8]} 10... O-O {[%clk 0:02:59.3]} 11.
Nd2 {[%clk 0:01:44.2]} 11... Bg4 {[%clk 0:02:48.3]} 12. Qa4 {[%clk 0:01:32.9]}
12... Ne5 {[%clk 0:02:47.3]} 13. Bf1 {[%clk 0:01:24.5]} 13... a6 {[%clk
0:02:47.3]} 14. Qb3 {[%clk 0:01:20.7]} 14... Qc7 {[%clk 0:02:40.1]} 15. h3
{[%clk 0:01:16.8]} 15... Bd7 {[%clk 0:02:38.7]} 16. Bg5 {[%clk 0:01:12.9]} 16...
Nh5 {[%clk 0:02:16.5]} 17. Qxd5 {[%clk 0:01:07.1]} 17... h6 {[%clk 0:02:16.8]}
18. Be3 {[%clk 0:01:06.2]} 18... Nf6 {[%clk 0:02:08.8]} 19. Qb3 {[%clk
0:01:05.7]} 19... Rad8 {[%clk 0:02:08]} 20. Rad1 {[%clk 0:00:57.8]} 20... b5
{[%clk 0:02:04.8]} 21. N2f3 {[%clk 0:00:54.9]} 21... Ng6 {[%clk 0:02:04.5]} 22.
Bd3 {[%clk 0:00:49.7]} 22... Kh8 {[%clk 0:01:55]} 23. Bc1 {[%clk 0:00:46]} 23...
Bc8 {[%clk 0:01:38.8]} 24. Bxg6 {[%clk 0:00:27.3]} 24... fxg6 {[%clk 0:01:38.8]}
25. Ne6 {[%clk 0:00:27.7]} 25... Bxe6 {[%clk 0:01:39.3]} 26. Rxe6 {[%clk
0:00:26.3]} 26... Bc5 {[%clk 0:01:30.5]} 27. Be3 {[%clk 0:00:20.1]} 27... Bxe3
{[%clk 0:01:11.5]} 28. Rxe3 {[%clk 0:00:19.6]} 28... Rxd1+ {[%clk 0:01:11.6]}
29. Qxd1 {[%clk 0:00:20.3]} 29... Nh5 {[%clk 0:01:10.2]} 30. Re4 {[%clk
0:00:17.4]} 30... Nf4 {[%clk 0:01:08.8]} 31. Kh1 {[%clk 0:00:12.6]} 31... g5
{[%clk 0:01:09.2]} 32. Qd4 {[%clk 0:00:10.5]} 32... Nxh3 {[%clk 0:01:05]} 33.
gxh3 {[%clk 0:00:10.6]} 33... Rxf3 {[%clk 0:01:04.6]} 34. Re8+ {[%clk
0:00:11.3]} 34... Kh7 {[%clk 0:01:00.6]} 35. Qe4+ {[%clk 0:00:11.8]} 1-0